bitfinex/quotes_ETHUSD_20250519
["timestamp","ask_amount","ask_price","bid_price","bid_amount"]
[1747613380286,4.00176976,2498.9,2498.2,4.00272264]
[1747613380495,15.85981249,2498.9,2497.9,0.47300834]
[1747613380696,21.25040309,2499.8,2498.0,1.30674083]
[1747613380900,4.00089605,2499.5,2498.1,4.00304231]
[1747613381102,15.86305357,2499.4,2498.7,4.00193992]
[1747613381433,11.862,2499.8,2498.8,4.00192092]
[1747613381640,4.0006401,2499.6,2498.7,0.7264]
[1747613381805,4.80622031,2499.3,2498.1,0.7264]
[1747613381983,4.00267945,2498.4,2497.6,0.7264]
[1747613382181,0.37600127,2498.3,2497.7,4.00368338]
[1747613382490,0.33591712,2498.3,2497.6,0.7264]
[1747613382704,0.33591712,2498.2,2497.8,4.00338568]
[1747613382885,0.33591712,2498.2,2497.8,0.87334691]
[1747613383083,0.33591712,2498.2,2497.6,4.7301076]
[1747613383307,0.33591712,2498.2,2498.1,4.00304231]
[1747613384284,0.33591712,2498.2,2498.0,4.0031934]
[1747613384495,0.33591712,2498.2,2498.1,4.00304231]
[1747613384814,0.33591712,2498.2,2497.6,0.7264]
[1747613385000,4.00304231,2498.1,2497.6,0.7264]
[1747613385201,4.00336282,2497.9,2497.6,0.7264]
[1747613385402,0.33591712,2497.8,2497.6,0.7264]
[1747613385714,0.33591712,2497.8,2497.5,0.77870904]
[1747613386484,0.33591712,2497.8,2497.7,4.00368338]
[1747613387117,0.33591712,2497.8,2497.5,0.77870904]
[1747613387719,4.00384368,2497.6,2497.5,0.77870904]
[1747613387897,4.3397608,2497.6,2497.5,0.77870904]
[1747613388482,12.37984495,2497.6,2497.5,0.77870904]
[1747613388682,4.3397608,2497.6,2497.5,0.77870904]
[1747613388924,12.20291712,2497.6,2497.5,0.77870904]
[1747613389137,0.33591712,2497.6,2497.5,0.77870904]
[1747613389319,0.33591712,2497.6,2497.5,4.78271304]
[1747613389523,0.8212,2499.1,2497.5,13.5293952]
[1747613389828,4.33760991,2499.0,2498.4,4.00247574]
[1747613390033,0.33591712,2498.9,2498.3,0.04002368]
[1747613390191,0.33591712,2498.9,2498.8,4.72832092]
[1747613390386,4.00009963,2500.0,2498.9,4.00176077]
[1747613390619,11.87,2500.0,2498.9,0.47281608]
[1747613390832,3.99985948,2500.1,2499.3,4.00096422]
[1747613391030,4.00068684,2499.6,2498.8,0.7264]
[1747613391220,4.00080016,2499.5,2498.8,0.7264]
[1747613391416,0.33591712,2500.1,2498.8,0.7264]
[1747613391640,0.33591712,2500.1,2499.0,0.55]
[1747613391847,0.33591712,2500.1,2499.1,11.872]
[1747613392031,0.33591712,2500.1,2499.5,4.00080016]
[1747613392340,0.33591712,2500.1,2499.4,0.7264]
[1747613392508,0.33591712,2500.1,2499.5,0.04000496]
[1747613392704,0.33591712,2500.1,2500.0,4.0]
[1747613392917,0.33591712,2500.1,2499.4,8.7264]
[1747613393118,0.33591712,2500.1,2499.5,12.74364]
[1747613393342,0.33591712,2500.1,2500.0,4.0]
[1747613393839,0.33591712,2500.1,2499.6,11.871]
[1747613394617,0.33591712,2500.1,2500.0,4.0]
[1747613394818,0.33591712,2500.1,2499.6,11.871]
[1747613395220,0.33591712,2500.1,2499.5,0.87264]
[1747613395425,4.33585612,2500.1,2499.4,0.7264]
[1747613395641,0.33591712,2500.1,2499.4,12.5954]
[1747613395847,0.33591712,2500.1,2499.6,4.00049068]
[1747613396068,0.33591712,2500.1,2499.8,4.00017497]
[1747613396342,0.33591712,2500.1,2500.0,4.0]
[1747613396639,0.33591712,2500.1,2499.8,0.64380816]
[1747613396838,0.33591712,2500.1,2499.9,4.00005711]
[1747613397039,0.33591712,2500.1,2499.4,16.59631113]
[1747613397040,0.33591712,2500.1,2499.4,0.7264]
[1747613397258,0.33591712,2500.1,2498.5,4.00226924]
[1747613397259,4.00043178,2499.8,2499.1,21.28033058]
[1747613397458,0.33561072,2499.8,2499.7,4.00048005]
[1747613397660,0.33561072,2499.8,2499.5,4.00069279]
[1747613397959,4.33593397,2499.8,2499.3,4.001034]
[1747613398250,0.33561072,2499.8,2499.1,17.279]
[1747613398420,4.00105544,2499.4,2499.1,17.279]
[1747613398609,4.00091613,2499.5,2499.1,17.279]
[1747613398810,0.33561072,2499.8,2499.1,17.279]
[1747613399026,4.00071064,2499.6,2499.1,17.279]
[1747613399231,4.00055542,2499.7,2499.1,21.2803992]
[1747613399430,4.00055542,2499.7,2499.1,17.279]
[1747613399751,4.0007366,2499.6,2499.1,29.147]
[1747613400121,4.76947282,2500.0,2499.3,4.0010744]
[1747613400321,12.6971,2500.4,2499.3,4.0010125]
[1747613400635,0.04008415,2500.3,2499.2,0.7264]
[1747613400833,8.8331,2500.4,2499.2,12.5944]
[1747613401035,4.00001478,2500.0,2499.4,4.00086572]
[1747613401236,0.8331,2500.4,2499.7,4.00039159]
[1747613401436,0.8331,2500.4,2499.3,2.98734]
[1747613401626,0.8331,2500.4,2499.7,4.0003712]
[1747613401828,0.7988,2501.2,2499.8,0.7264]
[1747613402112,3.9987204,2500.8,2499.5,11.868]
[1747613402327,3.9987204,2500.8,2499.3,2.98734]
[1747613402328,4.00104476,2499.4,2499.1,17.279]
[1747613402511,4.0012804,2499.2,2499.1,17.279]
[1747613402712,0.7988,2500.3,2499.1,0.7264]
[1747613402913,3.99944283,2500.4,2499.2,8.0]
[1747613403114,0.77,2501.4,2499.3,1.27278199]
[1747613403115,4.000099,2500.0,2499.3,1.27278199]
[1747613403333,0.77,2500.5,2499.1,12.5944]
[1747613403538,4.00028416,2499.9,2499.3,4.00110106]
[1747613403714,0.77,2500.5,2499.4,0.04000337]
[1747613403915,3.99870662,2500.9,2499.4,0.55]
[1747613404114,0.77,2501.0,2499.7,0.55]
[1747613404337,3.99776125,2501.4,2500.1,0.55]
[1747613404547,11.863,2501.8,2500.9,3.99847227]
[1747613404818,3.99728184,2501.7,2500.6,8.55]
[1747613405046,0.77,2502.0,2500.6,8.55]
[1747613405047,0.77,2502.0,2501.0,3.99827927]
[1747613405225,0.77,2502.0,2500.6,0.55]
[1747613405226,3.99713886,2501.8,2501.2,3.99799066]
[1747613405425,7.02546987,2502.6,2501.2,0.7264]
[1747613405626,0.77,2502.7,2501.2,0.7264]
[1747613405627,3.99792108,2501.3,2501.2,0.7264]
[1747613405846,3.99839786,2501.1,2500.9,11.868]
[1747613406027,0.77,2502.0,2500.9,11.868]
[1747613406235,3.99792296,2501.3,2500.9,11.868]
[1747613406558,4.00006019,2500.0,2499.7,0.7264]
[1747613406861,0.04008415,2500.1,2499.7,12.5944]
[1747613407056,8.0,2500.8,2499.8,0.2404953]
[1747613407259,3.99979782,2500.2,2499.8,0.2404953]
[1747613407556,4.00016,2499.9,2499.8,0.2404953]
[1747613408117,12.77016,2499.9,2499.8,0.2404953]
[1747613408553,12.00032002,2499.8,2499.7,0.30113196]
[1747613408759,23.85932002,2499.8,2499.7,0.30113196]
[1747613408965,4.76866077,2498.9,2497.7,17.27]
[1747613409122,24.62766077,2498.9,2497.6,0.7264]
[1747613409484,24.62766077,2498.9,2497.5,0.77870904]
[1747613409485,24.92602676,2498.9,2497.5,0.77870904]
[1747613409666,5.31930144,2498.5,2497.5,0.77870904]
[1747613409957,4.00384368,2497.6,2497.5,0.77870904]
[1747613410170,12.77074368,2497.6,2497.5,0.77870904]
[1747613410458,24.62874368,2497.6,2497.5,0.77870904]
[1747613410634,12.77074368,2497.6,2497.5,0.77870904]
[1747613410833,24.62874368,2497.6,2497.5,0.77870904]
[1747613411166,4.77074368,2497.6,2497.5,0.77870904]
[1747613412237,4.77074368,2497.6,2496.5,0.40239398]
[1747613412238,4.0054474,2496.6,2496.5,0.40239398]
[1747613413333,4.86773155,2496.6,2496.5,0.40239398]
[1747613413669,12.8276474,2496.6,2496.5,0.40239398]
[1747613413844,24.6916474,2496.6,2496.5,0.40239398]
[1747613414052,12.8276474,2496.6,2496.5,0.40239398]
[1747613414259,4.00625079,2496.1,2495.4,4.00734221]
[1747613414463,0.8222,2496.6,2495.5,4.00721298]
[1747613414653,12.00496615,2496.9,2495.7,4.00674016]
[1747613414849,12.00496615,2496.9,2495.4,1.98800086]
[1747613414850,4.00535455,2496.7,2495.4,9.98800086]
[1747613415032,0.7919,2497.1,2495.5,0.8206]
[1747613415239,4.00480576,2497.0,2495.6,1.08086009]
[1747613415483,4.00705241,2495.6,2495.5,0.8206]
[1747613415644,11.864,2496.3,2495.0,154.8192115]
[1747613415879,8.0,2496.8,2495.0,150.8113]
[1747613415880,4.00618729,2496.2,2495.0,150.8113]
[1747613416115,11.864,2496.7,2495.8,4.00671914]
[1747613416414,12.6569,2497.1,2495.9,0.55]
[1747613416415,0.7919,2497.1,2495.9,0.55]
[1747613416575,11.869,2497.9,2496.4,4.00568417]
[1747613416576,4.00368338,2497.7,2496.4,4.00568417]
[1747613416776,4.00368338,2497.7,2496.1,17.286]
[1747613416985,4.004004,2497.5,2496.1,17.286]
[1747613417190,4.00416433,2497.4,2495.8,0.782]
[1747613417413,4.00368338,2497.7,2495.9,0.04006232]
[1747613417600,11.867,2497.7,2496.0,0.55]
[1747613417926,4.00480867,2497.0,2496.4,4.00566287]
[1747613418227,8.7721,2497.8,2496.6,4.00540196]
[1747613418413,0.7721,2497.8,2496.7,0.7819]
[1747613418724,11.867,2497.9,2496.4,0.40056629]
[1747613418898,19.867,2497.9,2496.4,0.40056629]
[1747613419100,15.87062438,2497.8,2496.5,4.00560785]
[1747613419324,8.81218415,2497.7,2496.3,0.7819]
[1747613419490,4.00523116,2496.8,2496.3,0.7819]
[1747613419694,4.00491011,2497.0,2496.3,4.78781093]
[1747613420018,4.00416433,2497.4,2496.4,0.04005618]
[1747613420223,0.7721,2497.7,2496.3,0.7819]
[1747613420224,4.00441322,2497.3,2496.5,4.00559183]
[1747613420531,4.77583405,2497.7,2496.9,4.00495035]
[1747613420784,4.00413077,2497.5,2496.8,4.00508157]
[1747613420955,4.00416996,2497.4,2496.8,4.00508157]
[1747613421229,4.00416996,2497.4,2496.6,4.4059824]
[1747613421230,0.7721,2497.7,2496.6,11.87]
[1747613421542,4.77582453,2497.7,2496.7,0.04005205]
[1747613421690,4.00304231,2498.1,2497.2,4.82604116]
[1747613422055,4.00304231,2498.1,2497.2,0.8216]
[1747613422189,0.8289,2498.2,2497.2,0.8216]
[1747613422390,4.83182736,2498.2,2497.2,0.8216]
[1747613422701,0.8289,2498.6,2497.2,0.8216]
[1747613422904,4.0034929,2497.9,2497.3,4.00422521]
[1747613423111,4.00355368,2497.8,2497.2,0.8216]
[1747613423358,0.04008415,2497.7,2497.2,0.8216]
[1747613423512,0.8289,2498.6,2497.2,0.8216]
[1747613423854,11.868,2498.8,2497.3,4.55432467]
[1747613424010,22.08733409,2499.1,2497.4,4.541733]
[1747613424212,4.0022326,2498.7,2498.0,4.00306569]
[1747613424558,4.00237842,2498.6,2498.0,4.00306569]
[1747613424743,4.80127044,2499.1,2497.8,15.87440161]
[1747613424744,4.00199916,2498.8,2498.1,0.04002886]
[1747613424914,4.00199916,2498.8,2498.2,4.00288207]
[1747613425120,0.8057,2499.5,2498.5,0.8159]
[1747613425317,4.00091171,2499.5,2498.5,0.8159]
[1747613425632,4.0011475,2499.3,2498.7,4.00201316]
[1747613426012,4.0011475,2499.3,2498.5,0.8159]
[1747613426013,4.00186841,2498.9,2498.5,0.8159]
[1747613426347,4.00170496,2499.0,2498.5,4.81826948]
[1747613426553,0.8057,2499.9,2498.9,4.00175251]
[1747613426714,0.7641,2500.3,2499.3,4.00109968]
[1747613427056,0.7623,2500.7,2499.4,0.04000823]
[1747613427225,0.7623,2500.7,2498.9,17.287]
[1747613427226,4.00128637,2499.2,2498.9,17.287]
[1747613427429,4.00137844,2499.2,2498.9,17.287]
[1747613427625,0.04008415,2499.1,2498.7,0.8282]
[1747613427851,4.00218632,2498.7,2498.3,0.7839]
[1747613428149,11.865,2499.1,2498.0,17.287]
[1747613428371,4.00249259,2498.5,2498.0,17.287]
[1747613428572,4.0012804,2499.2,2498.2,4.00287062]
[1747613428771,11.865,2499.2,2498.0,17.287]
[1747613428971,4.00193206,2498.8,2498.2,4.00277152]
[1747613429170,4.00268025,2498.4,2498.0,29.154]
[1747613429375,4.00298792,2498.2,2498.0,17.287]
[1747613429581,8.0,2499.1,2497.5,12.6701]
[1747613429876,8.0,2499.1,2497.5,0.8031]
[1747613430242,4.00309301,2498.1,2497.5,4.80701106]
[1747613430437,8.0,2498.9,2497.6,4.00377696]
[1747613430639,11.862,2499.0,2497.5,0.8031]
[1747613430852,4.0027076,2498.4,2497.6,11.867]
[1747613431188,4.00288207,2498.2,2497.5,0.8031]
[1747613431375,4.00432467,2497.3,2496.9,0.8206]
[1747613431694,4.00480576,2497.0,2496.9,0.8206]
[1747613431986,4.00560785,2496.5,2496.4,1.22299398]
[1747613432190,4.00560785,2496.5,2496.4,0.40239398]
[1747613432393,4.045692,2496.5,2496.4,0.40239398]
[1747613432550,15.906692,2496.5,2496.4,0.40239398]
[1747613432754,23.86660785,2496.5,2496.4,0.40239398]
[1747613432953,12.00560785,2496.5,2496.4,0.40239398]
[1747613433272,4.30120538,2496.8,2495.7,4.00676875]
[1747613433273,15.86621899,2496.8,2495.7,4.00676875]
[1747613433593,4.00458112,2497.2,2496.1,4.00609838]
[1747613433779,4.0051045,2496.9,2496.3,4.0059114]
[1747613433975,4.00585526,2496.4,2496.2,12.6872]
[1747613434491,4.00487077,2497.0,2496.4,4.00574771]
[1747613434687,4.00414586,2497.5,2496.7,4.00526982]
[1747613434890,4.00416433,2497.4,2496.2,0.8192]
[1747613435098,15.87496395,2497.6,2496.2,0.8192]
[1747613435258,4.00533724,2496.7,2496.2,0.8192]
[1747613435460,4.00426883,2497.4,2496.2,0.8192]
[1747613435658,4.0045784,2497.2,2496.6,4.00544185]
[1747613435988,4.004919,2497.0,2496.4,4.00567893]
[1747613436197,8.8331,2498.0,2496.5,4.40603533]
[1747613436393,8.8331,2498.0,2496.2,0.8192]
[1747613436394,4.00441336,2497.3,2496.7,4.00527709]
[1747613436553,0.8331,2498.0,2496.8,4.00510439]
[1747613436554,4.0042277,2497.4,2496.8,4.00510439]
[1747613436758,4.00449605,2497.2,2496.6,4.00534285]
[1747613436991,0.04008415,2497.1,2496.3,4.005916]
[1747613437194,2.18152093,2498.2,2496.4,0.4825116]
[1747613437355,2.48041929,2498.2,2496.6,0.8108]
[1747613437558,4.8363541,2498.0,2497.0,4.0047757]
[1747613437791,4.00336282,2497.9,2496.7,15.87625403]
[1747613438001,0.04008415,2497.8,2496.7,11.871]
[1747613438198,4.00455731,2497.2,2496.7,11.871]
[1747613438356,4.00407292,2497.5,2496.9,4.00496506]
[1747613438556,4.00326235,2498.0,2496.8,0.55]
[1747613438892,4.00371247,2497.7,2497.3,0.8108]
[1747613439093,4.00482018,2497.0,2496.6,11.871]
[1747613439405,0.04008415,2497.4,2496.6,11.871]
[1747613439568,4.00475668,2497.1,2496.6,15.87640671]
[1747613439775,11.86,2497.8,2496.6,11.871]
[1747613439982,0.7969,2498.4,2496.6,11.871]
[1747613440293,4.00286831,2498.3,2497.1,0.8036]
[1747613440493,4.00301383,2498.2,2497.6,4.00383446]
[1747613440680,11.86,2498.6,2497.4,11.872]
[1747613440989,4.004459,2497.3,2497.1,0.8036]
[1747613441190,4.004459,2497.3,2496.7,4.00519075]
[1747613441191,4.00458593,2497.2,2496.7,12.6756]
[1747613441393,4.004292,2497.4,2496.7,12.6756]
[1747613441605,0.7671,2498.4,2496.9,0.55]
[1747613441901,4.00394723,2497.6,2496.9,4.76761993]
[1747613442074,4.00382795,2497.7,2497.1,4.0046379]
[1747613442269,4.00404766,2497.5,2497.0,5.28153753]
[1747613442476,4.00409153,2497.5,2497.0,11.872]
[1747613442677,4.00288207,2498.2,2497.0,11.859]
[1747613443002,8.0,2498.4,2497.0,4.00480576]
[1747613443176,4.00337147,2497.9,2497.2,4.00439434]
[1747613443489,19.858,2498.4,2497.0,11.858]
[1747613443693,4.00376461,2497.7,2497.1,4.00452268]
[1747613443872,4.00320256,2498.0,2497.0,11.858]
[1747613444076,4.004025,2497.5,2497.0,11.858]
[1747613444271,4.00382218,2497.7,2497.1,4.00455925]
[1747613444508,0.30411854,2498.6,2497.1,2.10306385]
[1747613444690,4.00167467,2499.0,2497.4,0.55]
[1747613444893,4.00167467,2499.0,2497.3,18.1014]
[1747613445059,4.00285949,2498.3,2497.7,4.00355747]
[1747613445266,4.00264381,2498.4,2497.7,15.86155898]
[1747613445466,4.00282002,2498.3,2497.7,15.8616036]
[1747613445765,4.04291901,2498.3,2497.3,18.1014]
[1747613446006,4.00395051,2497.6,2497.3,18.1014]
[1747613446211,4.04334641,2498.0,2497.3,18.1014]
[1747613446503,4.00357212,2497.8,2497.3,18.1014]
[1747613446686,4.00412799,2497.5,2497.3,18.1014]
[1747613446886,4.00416433,2497.4,2496.4,0.8309]
[1747613447193,4.00471256,2497.1,2496.4,0.8309]
[1747613447400,4.00471256,2497.1,2496.5,4.40788601]
[1747613447613,4.00449307,2497.2,2496.6,4.00534919]
[1747613447765,4.00426741,2497.4,2496.7,4.00514096]
[1747613447961,4.00384368,2497.6,2496.6,4.00538256]
[1747613448212,4.00292804,2498.2,2496.7,0.55]
[1747613448376,8.0,2497.9,2496.7,0.55]
[1747613448571,4.00441797,2497.3,2496.8,11.857]
[1747613448785,4.00461121,2497.2,2496.7,11.857]
[1747613448978,4.00465531,2497.1,2496.7,11.857]
[1747613449374,4.00538122,2496.7,2496.5,11.858]
[1747613449965,4.0054474,2496.6,2496.5,11.858]
[1747613450281,4.00634297,2496.1,2495.9,0.7925]
[1747613450468,4.006177,2496.2,2495.9,0.7925]
[1747613450664,0.792,2496.6,2495.8,17.288]
[1747613450862,8.0,2496.5,2495.8,17.288]
[1747613451075,4.00628425,2496.1,2495.8,17.288]
[1747613451299,4.00619502,2496.2,2495.8,17.288]
[1747613451507,4.00518734,2496.8,2496.2,0.7517]
[1747613451802,4.00483494,2497.0,2496.3,4.00590096]
[1747613451988,4.80940087,2497.8,2496.4,11.858]
[1747613452195,4.00418907,2497.4,2496.7,4.00526903]
[1747613452364,0.33591712,2497.3,2496.5,0.5900489]
[1747613452565,0.33591712,2497.3,2496.8,0.7926]
[1747613452899,0.33591712,2497.3,2496.9,11.86]
[1747613452900,4.34031592,2497.3,2496.9,11.86]
[1747613453064,4.00456744,2497.2,2496.9,11.86]
[1747613453269,0.33591712,2497.1,2496.9,11.86]
[1747613453476,0.33591712,2497.1,2496.5,11.849]
[1747613453477,0.33591712,2497.1,2496.3,12.6526]
[1747613453676,4.00493885,2497.0,2496.4,1.26526]
[1747613453904,4.34092314,2496.9,2496.3,12.6526]
[1747613454196,0.33591712,2496.9,2496.3,12.6526]
[1747613454404,0.33591712,2496.9,2495.5,0.7926]
[1747613454405,4.00698555,2495.7,2495.5,0.7926]
[1747613454712,4.00682864,2495.8,2495.5,0.7926]
[1747613454889,4.00681587,2495.8,2495.5,0.7926]
[1747613455068,4.00702996,2495.7,2495.3,0.40239398]
[1747613455269,4.0071435,2495.6,2495.3,0.40239398]
[1747613455579,4.00696777,2495.7,2495.1,4.82224522]
[1747613455769,4.00659357,2495.9,2495.1,16.44323441]
[1747613455971,12.00480576,2497.0,2495.2,4.00769477]
[1747613456168,4.00554687,2496.6,2496.1,4.82064516]
[1747613456387,4.00562468,2496.5,2496.1,0.8144]
[1747613456673,4.00535161,2496.7,2496.1,4.82064887]
[1747613456882,4.00533339,2496.7,2496.2,4.00600702]
[1747613457088,4.0052012,2496.8,2496.2,4.00600702]
[1747613457283,4.0052012,2496.8,2496.1,16.68163992]
[1747613457579,4.00483873,2497.0,2496.3,4.005916]
[1747613457791,4.55356056,2497.8,2496.3,4.005916]
[1747613457792,12.14887515,2497.7,2496.4,0.04005608]
[1747613458006,4.00433311,2497.3,2496.3,4.55589689]
[1747613458208,4.00450357,2497.2,2496.7,4.00522953]
[1747613458499,4.00514548,2496.8,2496.1,10.48256399]
[1747613458680,0.04008415,2496.7,2496.1,10.48256399]
[1747613458878,8.0,2497.4,2496.2,11.861]
[1747613459077,4.83294827,2498.0,2496.4,0.55]
[1747613459309,4.00444323,2497.3,2496.7,4.00518011]
[1747613459620,4.00444323,2497.3,2496.6,4.00542407]
[1747613459621,4.00444323,2497.3,2496.8,4.00511513]
[1747613459794,4.00358675,2497.8,2497.2,4.0043782]
[1747613460100,4.00361805,2497.8,2497.2,4.0043782]
[1747613460305,4.0035231,2497.8,2496.9,0.8144]
[1747613460469,4.00530674,2496.7,2496.1,0.7708]
[1747613460672,4.00448502,2497.2,2496.2,11.861]
[1747613460940,0.55,2496.9,2495.7,0.7817]
[1747613461234,4.00671989,2495.9,2495.6,11.861]
[1747613461389,11.844,2496.5,2495.6,11.861]
[1747613461590,4.00675995,2495.8,2495.6,11.861]
[1747613461788,4.00721298,2495.5,2494.9,0.7603]
[1747613462008,4.04729713,2495.5,2494.7,0.79928681]
[1747613462220,13.42519713,2495.5,2494.7,0.79928681]
[1747613462422,13.68749891,2495.5,2494.0,0.79928681]
[1747613462622,12.55785539,2495.1,2494.6,0.40239398]
[1747613463184,25.75182339,2495.1,2495.0,89.99130321]
[1747613463415,12.66485539,2495.1,2495.0,89.99130321]
[1747613464038,12.00785539,2495.1,2495.0,89.99130321]
[1747613464488,8.0,2495.1,2495.0,89.99130321]
[1747613464692,0.107,2495.4,2495.0,89.99130321]
[1747613464893,15.95775286,2495.8,2495.1,4.0077253]
[1747613465227,2.15866737,2496.0,2495.3,0.815]
[1747613465524,0.04008415,2495.9,2495.3,0.815]
[1747613465725,0.107,2496.6,2495.3,0.815]
[1747613465944,4.00648253,2496.0,2495.3,6.09047365]
[1747613466169,4.00648253,2496.0,2495.0,91.88101468]
[1747613466170,4.00737356,2495.4,2495.0,89.99130321]
[1747613466452,4.04671746,2495.9,2495.0,89.99130321]
[1747613466453,4.00785539,2495.1,2495.0,89.99130321]
[1747613467517,0.107,2495.8,2495.0,89.99130321]
[1747613467518,19.841,2495.7,2495.0,89.99130321]
[1747613467715,4.00785539,2495.1,2495.0,89.99130321]
[1747613467955,4.007535,2495.3,2495.0,89.99130321]
[1747613468124,12.00785539,2495.1,2495.0,89.99130321]
[1747613468325,12.66485539,2495.1,2495.0,89.99130321]
[1747613468653,12.11485539,2495.1,2495.0,89.99130321]
[1747613468851,4.00756189,2495.3,2495.0,89.99130321]
[1747613469058,4.00785539,2495.1,2495.0,89.99130321]
[1747613469258,12.00785539,2495.1,2495.0,89.99130321]
[1747613470020,12.55785539,2495.1,2495.0,89.99130321]
[1747613470362,4.00785539,2495.1,2495.0,89.99130321]
[1747613470524,0.33591712,2495.3,2495.0,90.6589924]
[1747613470731,0.33591712,2495.3,2495.0,94.66688413]
[1747613470929,0.33591712,2495.3,2495.2,4.00769477]
[1747613471155,4.00631276,2496.1,2495.5,4.00712024]
[1747613471461,4.0068386,2495.8,2495.3,11.867]
[1747613471752,4.00742732,2495.4,2495.0,89.99130321]
[1747613472048,12.55785539,2495.1,2495.0,89.99130321]
[1747613472422,12.00785539,2495.1,2495.0,89.99130321]
[1747613472625,24.39685539,2495.1,2495.0,89.99130321]
[1747613473037,24.50385539,2495.1,2495.0,89.99130321]
[1747613474052,28.71485539,2495.1,2495.0,85.99140321]
[1747613474353,28.71485539,2495.1,2495.0,83.98550321]
[1747613474553,37.93960939,2495.1,2495.0,83.98550321]
[1747613474719,33.42664439,2495.1,2495.0,83.98550321]
[1747613474921,32.17449639,2495.1,2495.0,83.98550321]
[1747613475369,44.01449639,2495.1,2495.0,83.98550321]
[1747613475570,44.01449639,2495.1,2495.0,82.51737837]
[1747613475737,44.11449639,2495.1,2495.0,64.77871346]
[1747613476070,4.01235806,2492.3,2492.2,0.30337332]
[1747613477147,11.839,2492.7,2492.2,0.30337332]
[1747613477455,4.01235806,2492.3,2492.2,0.25337332]
[1747613478835,4.01235806,2492.3,2491.6,0.8099]
[1747613478836,4.0094611,2494.2,2491.6,0.8099]
[1747613479038,4.0094611,2494.2,2491.7,1.60031532]
[1747613479039,8.0,2492.8,2491.7,1.60031532]
[1747613479251,4.01248039,2492.3,2491.7,1.60031532]
[1747613479562,4.012157,2492.5,2491.7,0.33502532]
[1747613479563,4.01316317,2491.8,2491.7,0.33502532]
[1747613479763,11.836,2492.4,2491.7,0.33502532]
[1747613480173,4.01270982,2492.1,2491.7,0.33502532]
[1747613480333,4.01053608,2493.5,2491.7,4.89889342]
[1747613480667,8.0,2492.9,2491.8,4.01316317]
[1747613480867,8.0,2492.9,2491.7,4.85883936]
[1747613480868,4.01247062,2492.3,2491.7,4.85877868]
[1747613481032,0.55,2493.0,2491.7,0.84553827]
[1747613481227,8.0,2492.7,2491.7,4.85884245]
[1747613481453,17.309,2493.8,2491.9,0.7565]
[1747613481454,19.838,2493.1,2491.9,0.7565]
[1747613481773,11.838,2493.1,2491.9,8.7565]
[1747613482070,4.01284109,2492.0,2491.9,0.7565]
[1747613482225,4.01316317,2491.8,2491.7,0.33502532]
[1747613482436,4.01412973,2491.2,2491.0,0.76]
[1747613483643,15.85219544,2491.8,2491.0,0.76]
[1747613483970,4.01412973,2491.2,2490.2,17.9819]
[1747613484183,12.01412973,2491.2,2490.2,18.7356]
[1747613484836,12.56412973,2491.2,2490.2,18.7356]
[1747613485151,12.01412973,2491.2,2490.2,18.7356]
[1747613485359,23.85112973,2491.2,2490.2,18.7356]
[1747613485561,12.01412973,2491.2,2490.2,18.7356]
[1747613485944,12.56412973,2491.2,2490.2,0.6639]
[1747613486361,12.56412973,2491.2,2489.3,17.324]
[1747613486362,0.55,2490.2,2486.1,4.10302]
[1747613486559,4.01896953,2488.2,2486.8,0.7566]
[1747613486734,12.211,2488.1,2487.0,12.8521955]
[1747613486928,0.55,2488.1,2487.2,2.10778453]
[1747613487169,0.55,2488.1,2487.0,24.7411955]
[1747613487477,8.0,2489.0,2487.6,14.69150137]
[1747613487637,4.0184773,2488.6,2487.7,1.54907882]
[1747613487835,8.0,2489.4,2487.8,0.82869174]
[1747613488070,8.0,2489.4,2487.2,11.934]
[1747613488071,8.0,2489.0,2487.4,0.7666]
[1747613488269,4.01880802,2488.3,2487.4,0.7666]
[1747613488476,8.0,2488.0,2487.4,12.6256]
[1747613488796,12.01993889,2487.6,2487.0,0.9991955]
[1747613488946,8.0,2487.6,2485.0,0.7666]
[1747613489147,4.02164162,2486.6,2485.2,0.7666]
[1747613489347,4.02090836,2487.1,2485.4,0.7666]
[1747613489591,4.02059088,2487.2,2485.6,0.7666]
[1747613489795,8.0,2487.6,2485.6,0.7666]
[1747613489996,8.0,2487.6,2485.7,11.859]
[1747613490148,11.994,2487.8,2485.8,0.7666]
[1747613490482,12.0197773,2487.7,2486.3,0.55]
[1747613490689,4.01997883,2487.6,2486.5,1.3166]
[1747613490840,4.02042528,2487.3,2486.5,0.7666]
[1747613491070,8.0,2487.7,2486.5,12.6256]
[1747613491269,4.02155553,2486.6,2486.5,0.7666]
[1747613491500,0.1,2489.4,2486.5,0.7666]
[1747613491679,4.01897998,2488.2,2486.6,0.7633]
[1747613491877,4.01761397,2489.1,2487.1,0.55]
[1747613492077,4.01896953,2488.2,2487.1,0.55]
[1747613492278,4.01884661,2488.3,2486.8,0.55]
[1747613492498,12.0,2488.7,2487.2,0.55]
[1747613492699,4.01909926,2488.2,2487.5,0.7633]
[1747613492920,4.01943876,2488.0,2487.7,8.0]
[1747613493075,4.01767778,2489.0,2487.8,11.865]
[1747613493272,4.01916913,2488.1,2487.6,17.341]
[1747613493504,12.024,2488.9,2487.7,11.865]
[1747613493805,8.0,2488.8,2487.6,17.341]
[1747613494011,4.01961572,2487.8,2487.7,11.868]
[1747613494207,4.01958307,2487.9,2487.7,11.868]
[1747613494381,4.01961572,2487.8,2487.6,17.341]
[1747613494584,4.01993889,2487.6,2485.9,1.26256]
[1747613494783,4.02009689,2487.6,2486.8,11.868]
[1747613494990,4.02034025,2487.4,2486.9,20.6558]
[1747613495191,4.02013102,2487.5,2486.9,20.6558]
[1747613495412,4.0198721,2487.7,2487.1,0.55]
[1747613495708,4.01848503,2488.5,2487.0,0.7878]
[1747613495913,8.0,2488.6,2487.3,9.3378]
[1747613496113,4.01945984,2487.9,2487.4,13.98858]
[1747613496278,4.01909154,2488.2,2487.4,2.12058]
[1747613496474,4.01848503,2488.5,2487.5,11.868]
[1747613496675,4.01832355,2488.6,2487.3,0.7878]
[1747613496874,4.01832355,2488.6,2487.6,11.868]
[1747613497187,4.0197773,2487.7,2487.6,11.868]
[1747613497390,4.02026212,2487.4,2487.3,0.7878]
[1747613498175,11.973,2488.0,2487.3,0.7878]
[1747613498435,4.02026212,2487.4,2487.3,0.7878]